{"text_format":"1","workbook":"xlsx","n_sheets":10,"sheets":["Getting Started","Setup","Home","Files","Actions","Emails","Docmo Workflow","Project Inputs","Test Results","Database Sync"],"not_rendered":{"charts":1,"images":12,"macros":1,"external_links":0,"defined_names":47,"comments":0,"pivot_tables":0},"unopened":[],"bounds":{"document_bytes":16777216,"sheet_cells":100000,"rows_first":2000,"rows_last":500,"rows_between":2000,"halvings":0,"cell_chars":16384,"cell_head_chars":4096},"cells_cut":0,"cells_raw":0,"read":"whole","date_system":"1900"}

{"sheet":"Getting Started","index":0,"n_rows":25,"n_cols":45,"rows_kept":25,"cut":false,"hidden":false,"merged":[[17,1,17,2],[14,1,14,2],[15,1,15,2]]}
[]
[]
[]
[]
[]
[]
[]
[]
[]
[]
[]
[]
[]
[]
[null,"Follow this guide to get started.",null,null,null,null,null,"Test if Docmo is working on this device.",null,null,null,null,null,"You must enable macros.",null,null,null,null,null,"You must trust this folder, and reopen this workbook.",null,null,null,null,null,null,"You must trust this folder, and reopen this workbook.",null,null,null,null,null,"Reopen this workbook.",null,null,null,null,null,"Next Steps",null,null,null,null,null,"Register this Device."]
[null,"(Click the Docmo icon to restart.)",null,null,null,null,null,null,null,null,null,null,null,null,null,null,null,null,null,"Docmo can only run from a \"trusted\" location.",null,null,null,null,null,null,"Docmo can only run from a \"trusted\" location.",null,null,null,null,null,"Saving is not necessary."]
[null,null,null,null,null,null,null,null,null,null,null,null,null,null,null,null,null,null,null,null,null,null,null,null,null,null,null,null,null,null,null,null,null,null,null,null,null,null,"Now that Docmo is installed, let's get you registered!",null,null,null,null,null,"None of the good features of Docmo will work until this device is registered and approved."]
[null,"Start."]
[null,null,null,null,null,null,null,"Yes, it's working!",null,null,null,null,null,"How do I enable macros?"]
[null,null,null,null,null,null,null,"It showed an error about a macro.",null,null,null,null,null,"They're enabled!",null,null,null,null,null,null,null,null,null,null,null,null,"Navigate:"]
[null,null,null,null,null,null,null,"It showed another error.",null,null,null,null,null,null,null,null,null,null,null,null,null,null,null,null,null,null,"File › Options (bottom left) › Trust Center (left) › Trust Center Settings › Trusted Locations (top left) › Add New Location › Browse",null,null,null,null,null,"Go back to trusted locations."]
[null,null,null,null,null,null,null,null,null,null,null,null,null,null,null,null,null,null,null,null,null,null,null,null,null,null,"If you get the error message below, you must check the box circled in red.",null,null,null,null,null,"Success! Go back and test Docmo."]
[null,null,null,null,null,null,null,null,null,null,null,null,null,null,null,null,null,null,null,"Do it manually."]
[null,null,null,null,null,null,null,null,null,null,null,null,null,null,null,null,null,null,null,"Location is trusted!",null,null,null,null,null,null,"Go back."]
[null,null,null,null,null,null,null,null,null,null,null,null,null,null,null,null,null,null,null,null,null,null,null,null,null,null,"Location is trusted!"]

{"sheet":"Setup","index":1,"n_rows":39,"n_cols":35,"rows_kept":39,"cut":false,"hidden":true,"merged":[[2,33,2,34],[9,33,9,34],[13,33,15,34],[2,1,2,4],[9,1,9,4]]}
["Setup"]
[]
[null,null,null,null,null,null,null,null,null,null,null,null,null,null,null,null,null,null,null,null,null,null,null,null,null,null,null,null,null,null,null,null,null,"Preferences"]
[null,null,null,null,null,null,null,null,null,null,null,null,null,null,null,null,null,null,null,null,null,null,null,null,null,null,null,null,null,null,null,null,null,"Root Directory"]
[null,null,null,null,null,null,null,null,null,null,null,null,null,null,null,null,null,null,null,null,null,null,null,null,null,null,null,null,null,null,null,null,null,"Overwrite Files","Yes"]
[null,null,null,null,null,null,null,null,null,null,null,null,null,null,null,null,null,null,null,null,null,null,null,null,null,null,null,null,null,null,null,null,null,"Update Tables and Fields","Yes"]
[null,null,null,null,null,null,null,null,null,null,null,null,null,null,null,null,null,null,null,null,null,null,null,null,null,null,null,null,null,null,null,null,null,"Tags","Remove All"]
[null,null,null,null,null,null,null,null,null,null,null,null,null,null,null,null,null,null,null,null,null,null,null,null,null,null,null,null,null,null,null,null,null,"Emails","Display"]
[]
[null,"Direct Actions",null,null,null,null,null,null,null,null,null,null,null,null,null,null,null,null,null,null,null,null,null,null,null,null,null,null,null,null,null,null,null,"Authentication Details"]
[null,null,null,null,null,null,null,null,null,null,null,null,null,null,null,null,null,null,null,null,null,null,null,null,null,null,null,null,null,null,null,null,null,"Workbook Version","Check for update."]
[null,null,null,null,null,null,null,null,null,null,null,null,null,null,null,null,null,null,null,null,null,null,null,null,null,null,null,null,null,null,null,null,null,"Library Version","1.0.16"]
[null,null,null,null,null,null,null,null,null,null,null,null,null,null,null,null,null,null,null,null,null,null,null,null,null,null,null,null,null,null,null,null,null,"Account Name","Docmo"]
[]
[]
[]
[]
[]
[]
[]
[]
[]
[]
[]
[]
[]
[]
[]
[]
[]
[]
[]
[]
[]
[]
[]
[]
[]
[null,null,null,null,"             "]

{"sheet":"Home","index":2,"n_rows":10,"n_cols":4,"rows_kept":10,"cut":false,"hidden":false,"merged":[]}
["Past Activity"]
[]
[]
[]
[]
[]
[]
[]
[]
["Date and Time","User","Activity","Note"]

{"sheet":"Files","index":3,"n_rows":15,"n_cols":8,"rows_kept":15,"cut":false,"hidden":false,"merged":[[0,6,0,7]]}
["Files"]
[]
[]
[]
[]
[]
[]
[]
[]
["Family","Title","File Action","Requirement","File Format(s)","Folder Naming Convention","File Naming Convention","File Location"]
["General","Performance Bond","Template","Manual Select",null,"C:\\Users\\X\\Docmo\\Docmo General - Internal Projects\\Docmo Demo Template\\Production","Performance Bond","O:\\Docmo\\Demo\\Templates\\Performance Bond.docx"]
["General","Service Invoice","Template","Manual Select",null,"C:\\Users\\X\\Docmo\\Docmo General - Internal Projects\\Docmo Demo Template\\Production","Service Invoice","O:\\Docmo\\Demo\\Templates\\Service Invoice.docx"]
["General","Standard Contract","Template","Manual Select",null,"C:\\Users\\X\\Docmo\\Docmo General - Internal Projects\\Docmo Demo Template\\Production","Standard Contract","O:\\Docmo\\Demo\\Templates\\Standard Contract.docx"]
["General","Technical Report","Template","Manual Select",null,"C:\\Users\\X\\Docmo\\Docmo General - Internal Projects\\Docmo Demo Template\\Production","Technical Report","O:\\Docmo\\Demo\\Templates\\Technical Report.docx"]
["General","Standard Contract","Batch Template","Manual Select",null,"C:\\Users\\X\\Docmo\\Docmo General - Internal Projects\\Docmo Demo Template\\Production","Standard Contract <Project Name>","O:\\Docmo\\Demo\\Templates\\Standard Contract.docx"]

{"sheet":"Actions","index":4,"n_rows":68,"n_cols":14,"rows_kept":68,"cut":false,"hidden":false,"merged":[]}
["Tag Actions"]
[]
[]
[]
[]
[]
[]
[]
[]
["Family","Tag ID","Action","Detail"]
["Project Basics","Project Name","Text",{"$f":"'Project Inputs'!C5","v":"Campus B Expansion"}]
["Project Basics","Project Manager","Text",{"$f":"'Project Inputs'!C6","v":"Bill Ding"}]
["Project Basics","Contract Number","Text",{"$f":"'Project Inputs'!C7","v":"N223-F0094"}]
["Project Basics","Date Awarded","Text",{"$f":"'Project Inputs'!C8","v":"2020-04-02"}]
["Project Basics","Date Awarded (Text)","Text",{"$f":"'Project Inputs'!C9","v":"2 day of April, 2020"}]
["Project Basics","Performance Period","Text",{"$f":"'Project Inputs'!C10","v":180}]
["Project Basics","Contract Completion Date","Text",{"$f":"'Project Inputs'!C11","v":"2020-09-29"}]
["Project Basics","Revised Performance Period","Text",{"$f":"'Project Inputs'!C12","v":180}]
["Project Basics","Revised Completion Date","Text",{"$f":"'Project Inputs'!C13","v":"2020-09-29"}]
["Project Owner","Owner Name","Text",{"$f":"'Project Inputs'!C17","v":"Construction Group, Inc."}]
["Project Owner","Owner Address","Text",{"$f":"'Project Inputs'!C18","v":"101 Industrial Ave"}]
["Project Owner","Owner City","Text",{"$f":"'Project Inputs'!C19","v":"Camden"}]
["Project Owner","Owner State","Text",{"$f":"'Project Inputs'!C20","v":"MA"}]
["Project Owner","Owner Zip","Text",{"$f":"'Project Inputs'!C21","v":62243}]
["Project Owner","Point of Contact","Text",{"$f":"'Project Inputs'!C22","v":"Jerry Bradshaw"}]
["Project Owner","Point of Contact Email","Text",{"$f":"'Project Inputs'!C23","v":"jerry.bradshaw@cgi.net"}]
["Project Owner","Point of Contact Phone","Text",{"$f":"'Project Inputs'!C24","v":5553392428}]
["Dates, Numbers","Today's Date","Text",{"$f":"'Project Inputs'!C28","v":"2020-03-14"}]
["Dates, Numbers","Today's Date (Text)","Text",{"$f":"'Project Inputs'!C29","v":"14 day of March, 2020"}]
["Dates, Numbers","Change Order","Text",{"$f":"'Project Inputs'!C30","v":119}]
["Dates, Numbers","Latest Invoice","Text",{"$f":"'Project Inputs'!C31","v":1042}]
["Dates, Numbers","Contract","Text",{"$f":"'Project Inputs'!C32","v":"2026A"}]
["Subcontractor","Subcontractor ID","Text",{"$f":"'Project Inputs'!F5","v":10019}]
["Subcontractor","Name","Text",{"$f":"'Project Inputs'!F6","v":"Johns, Shanahan and Brown"}]
["Subcontractor","Address","Text",{"$f":"'Project Inputs'!F7","v":"708 Cherry Corner"}]
["Subcontractor","City","Text",{"$f":"'Project Inputs'!F8","v":"WHITTIER"}]
["Subcontractor","State","Text",{"$f":"'Project Inputs'!F9","v":"MA"}]
["Subcontractor","Zip","Text",{"$f":"'Project Inputs'!F10","v":10605}]
["Sub Bonds","Number","Text",{"$f":"'Project Inputs'!F14","v":"TSB461"}]
["Sub Bonds","Company","Text",{"$f":"'Project Inputs'!F15","v":"Big Insurance Services"}]
["Sub Bonds","Address","Text",{"$f":"'Project Inputs'!F16","v":"430 N. Wacker Drive, 40th Floor"}]
["Sub Bonds","City","Text",{"$f":"'Project Inputs'!F17","v":"Chicago"}]
["Sub Bonds","State","Text",{"$f":"'Project Inputs'!F18","v":"IL"}]
["Sub Bonds","Zip","Text",{"$f":"'Project Inputs'!F19","v":62243}]
["Sub Bonds","Phone","Text",{"$f":"'Project Inputs'!F20","v":5553392428}]
["Estimate","Mechanical","Text",{"$f":"'Project Inputs'!I5","v":600000}]
["Estimate","Comsumables","Text",{"$f":"'Project Inputs'!I6","v":450000}]
["Estimate","Fencing","Text",{"$f":"'Project Inputs'!I7","v":60000}]
["Estimate","Roofing","Text",{"$f":"'Project Inputs'!I8","v":380000},null,null,null,null,null,null,null,null,null,{"$f":"#REF!","v":{"$error":"#REF!"}}]
["Estimate","Concrete","Text",{"$f":"'Project Inputs'!I9","v":140000}]
["Estimate","Trim","Text",{"$f":"'Project Inputs'!I10","v":410000}]
["Estimate","Plumbing","Text",{"$f":"'Project Inputs'!I11","v":300000}]
["Estimate","Electrical","Text",{"$f":"'Project Inputs'!I12","v":350000}]
["Estimate","Total Estimate","Text",{"$f":"'Project Inputs'!I13","v":2690000}]
["General","Boilerplate Verbiage","Bold",true]
["General","Subheader","Remove"]
["General","Datapoint 1","Text",22.1]
["General","Datapoint 2","Text",23.3]
["General","Table Results","Table","TableRange"]
["General","Sentence Portion","Strike",true]
["General","Cost Profile Chart","Range Image","ChartRange"]
["General","Client Name","Text",{"$f":"'Project Inputs'!C17","v":"Construction Group, Inc."}]
["General","Company Name","Text",{"$f":"'Project Inputs'!F6","v":"Johns, Shanahan and Brown"}]
["General","Client Address","Text",{"$f":"'Project Inputs'!C18","v":"101 Industrial Ave"}]
["General","Sub Name","Text",{"$f":"'Project Inputs'!F6","v":"Johns, Shanahan and Brown"}]
["General","SOW Date","Text",{"$f":"'Project Inputs'!C8","v":"2020-04-02"}]
["General","SOW Number","Text",{"$f":"'Project Inputs'!C32","v":"2026A"}]
["General","Agreement Verbiage","Bold","On"]

{"sheet":"Emails","index":5,"n_rows":11,"n_cols":9,"rows_kept":11,"cut":false,"hidden":false,"merged":[]}
["Email Templates"]
[]
[]
[]
[]
[]
[]
[]
[]
["Family","Title","Requirement","Subject","Body","Attachments","To:","Cc:","Bcc:"]
[null,"Test","Required","Hello Subject","PoA General"]

{"sheet":"Docmo Workflow","index":6,"n_rows":0,"n_cols":0,"rows_kept":0,"cut":false,"hidden":false,"merged":[]}

{"sheet":"Project Inputs","index":7,"n_rows":32,"n_cols":10,"rows_kept":32,"cut":false,"hidden":false,"merged":[[11,4,12,5],[2,7,3,8],[14,1,15,2],[2,4,3,5],[25,1,26,2],[2,1,3,2]]}
[null,"Project Data Entry"]
[]
[null,"Project Basics",null,null,"Subcontractor",null,null,"Estimate by Cost Code"]
[]
[null,"Project Name","Campus B Expansion",null,"Subcontractor ID",10019,null,"Mechanical",600000]
[null,"Project Manager","Bill Ding",null,"Name",{"$f":"VLOOKUP($F$5,tblImport[],MATCH('Project Inputs'!E6,tblImport[#Headers],0))","v":"Johns, Shanahan and Brown"},null,"Comsumables",450000,""]
[null,"Contract Number","N223-F0094",null,"Address",{"$f":"VLOOKUP($F$5,tblImport[],MATCH('Project Inputs'!E7,tblImport[#Headers],0))","v":"708 Cherry Corner"},null,"Fencing",60000]
[null,"Date Awarded","2020-04-02",null,"City",{"$f":"VLOOKUP($F$5,tblImport[],MATCH('Project Inputs'!E8,tblImport[#Headers],0))","v":"WHITTIER"},null,"Roofing",380000]
[null,"Date Awarded (Text)",{"$f":"DAY(C8) & \" day of \" & TEXT((C8),\"mmmm\") & \", \" & YEAR(C8)","v":"2 day of April, 2020"},null,"State",{"$f":"VLOOKUP($F$5,tblImport[],MATCH('Project Inputs'!E9,tblImport[#Headers],0))","v":"MA"},null,"Concrete",140000]
[null,"Performance Period",180,null,"Zip",{"$f":"VLOOKUP($F$5,tblImport[],MATCH('Project Inputs'!E10,tblImport[#Headers],0))","v":10605},null,"Trim",410000]
[null,"Contract Completion Date",{"$f":"C8+C10","v":"2020-09-29"},null,null,null,null,"Plumbing",300000]
[null,"Revised Performance Period",180,null,"Subcontractor Bonds",null,null,"Electrical",350000]
[null,"Revised Completion Date",{"$f":"C8+C12","v":"2020-09-29"},null,null,null,null,"Total Estimate",{"$f":"SUM(I5:I12)","v":2690000}]
[null,null,null,null,"Number","TSB461"]
[null,"Project Owner",null,null,"Company","Big Insurance Services"]
[null,null,null,null,"Address","430 N. Wacker Drive, 40th Floor",null,null,null,""]
[null,"Owner Name","Construction Group, Inc.",null,"City","Chicago",""]
[null,"Owner Address","101 Industrial Ave",null,"State","IL"]
[null,"Owner City","Camden",null,"Zip",62243]
[null,"Owner State","MA",null,"Phone",5553392428]
[null,"Owner Zip",62243,null,"Required if ≥",1000000]
[null,"Point of Contact","Jerry Bradshaw"]
[null,"Point of Contact Email","jerry.bradshaw@cgi.net"]
[null,"Point of Contact Phone",5553392428]
[]
[null,"Dates and Numbers"]
[]
[null,"Today's Date","2020-03-14"]
[null,"Today's Date (Text)",{"$f":"DAY(C28) & \" day of \" & TEXT((C28),\"mmmm\") & \", \" & YEAR(C28)","v":"14 day of March, 2020"}]
[null,"Change Order",119]
[null,"Latest Invoice",1042]
[null,"Contract","2026A"]

{"sheet":"Test Results","index":8,"n_rows":0,"n_cols":0,"rows_kept":0,"cut":false,"hidden":false,"merged":[]}

{"sheet":"Database Sync","index":9,"n_rows":50,"n_cols":11,"rows_kept":50,"cut":false,"hidden":false,"merged":[]}
["Subcontractor Database"]
["Sub ID","Name","Address","Address_2","City","State","ZIP","Telephone","Fax","Date_Established","Status"]
[10001,"Feil, Hoppe and Purdy","975 Raspberry Road",null,"CRAWFORD","MA","10064-3436",null,null,"2012-10-22","Active"]
[10002,"Kiehn PLC","260 Date Drive","SUITE 800","CHANTILLY","VA",30262,"(808)486-5444","(804)486-5454","2013-02-05","Active"]
[10003,"Quigley Inc","980 Banana Boulevard",null,"EL PASO","CA","13218-3411",null,null,"2012-02-29","Active"]
[10004,"Flatley, Bayer and Friesen","934 Raspberry Road",null,"EL PASO","CA",71103,"(116)688-1796","(116)688-1794","2013-02-05","Active"]
[10005,"Stanton-Hettinger","394 Banana Boulevard",null,"CAMDEN","MA","13218-3411","(711)546-0570","(711)546-0574","2010-06-23","Active"]
[10006,"O'Reilly, Frami and Schamberger","535 Avocado Avenue",null,"CAMDEN","MA",13232,"(969)698-1101","(696)698-1104","2010-04-05","Active"]
[10007,"Sueye Poslfiniguoh Ufs./Lwoyposlfiniguo Sueye Ufs.","391 Avocado Avenue",null,null,null,null,null,null,"2010-04-19","Active"]
[10008,"Sipes and Sons","629 Date Drive",null,"BETHESDA","MD","30825-6216",null,null,"2010-04-07","Active"]
[10009,"Sanford, Pagac and Cormier","190 Apple Alley","5922 AIRPORT PLAZA DRIVE","BOSTON","MA",10826,null,null,"2013-02-05","Active"]
[10010,"Marvin-Jerde","140 Banana Boulevard",null,"CAMDEN","MA","13202-2761","(711)344-8100","(711)344-1991","2010-04-16","Active"]
[10011,"Powlowski-Gorczany","637 Cherry Corner",null,null,null,null,null,null,"2010-04-19","Active"]
[10012,"Langworth, Kautzer and Hyatt","377 Berry Block",null,"CAMDEN","MA",13237,"(969)784-5561","(969)784-5388","2012-01-19","Active"]
[10013,"Ryan-Kulas","289 Cherry Corner",null,"BETHESDA","MD",null,null,null,"2010-04-19","Active"]
[10014,"Conroy and Sons","881 Cherry Corner",null,"BETHESDA","MD",null,null,null,"2011-12-12","Active"]
[10015,"Breitenberg Inc","467 Date Drive",null,"CARLSBAD","MA",13008,null,null,"2010-04-05","Active"]
[10016,"Kessler-Schaden","252 Cherry Corner","SUITE 220","CAMDEN","MA",13233,"(969)736-0100","(969)736-1354","2013-02-05","Active"]
[10017,"Volkman Ltd","509 Date Drive",null,"SPRING VALLEY","TX",12177,"(711) 778-5676","(711)778-1391","2012-11-01","Active"]
[10019,"Johns, Shanahan and Brown","708 Cherry Corner","SUITE 203","WHITTIER","MA",10605,"(870) 861-3370","(870) 861-3371","2012-06-28","Active"]
[10020,"Breitenberg-Graham","328 Apple Alley",null,"CAMDEN","MA",13616,"(711)317-7358","(711)317-5415","2010-04-05","Active"]
[10021,"Flatley, Bayer and Friesen","288 Tomato Turnpike",null,"PORTLAND","OR",null,null,null,"2011-10-13","Active"]
[10022,"Mosciski, Bergnaum and Metz","691 Cherry Corner",null,"PORTLAND","OR","17308-5466","(189)888-1100","(189)757-1374","2012-03-29","Active"]
[10022,"Paucek Inc","403 Raspberry Road",null,"SEASIDE","MA",14166,null,null,"2010-04-06","Active"]
[10023,"Glover-O'Keefe","644 Berry Block",null,"WASHINGTON","DC",30002,null,null,"2012-10-15","Active"]
[10024,"McGlynn Inc","274 Strawberry Street",null,"Munising","MI","17308-5466","(189)888-1100","(189)757-1374","2010-04-06","Active"]
[10025,"Kerluke, Prohaska and Macejkovic","684 Tomato Turnpike",null,"CAMDEN","MA",13262,null,null,"2010-04-06","Active"]
[10026,"Bradtke, Schamberger and Klocko","715 Banana Boulevard",null,"CRAWFORD","MA",10035,"(151)544-1616",null,"2011-12-12","Active"]
[10027,"Schultz, Friesen and Williamson","180 Date Drive",null,"CRAWFORD","MA",10035,"(151)544-1616",null,"2013-04-09","Active"]
[10028,"Bartoletti PLC","891 Avocado Avenue","4340 PEACEKEEPER WAY, BLDG 302","McCLELLAN PARK","MA","16663-2023",null,null,"2013-04-09","Active"]
[10029,"Mosciski-Zulauf","245 Raspberry Road","PO BOX 643822","CRAWFORD","MA","10064-3436",null,null,"2013-04-09","Active"]
[10030,"Stanton-Hettinger","275 Raspberry Road","888 EAST MISSOURI RD, STE 400","PHOENIX","NM",86025,"(703) 816-5517",null,"2013-04-09","Active"]
[10031,"O'Reilly, Frami and Schamberger","VA369-14-D-0008","4702 S 7th AVENUE","TUCSON","NM",86734,"(630)731-5940",null,"2013-04-09","Active"]
[10032,"Sueye Poslfiniguoh Ufs./Lwoyposlfiniguo Sueye Ufs.","N73584-14-G-4036","2330 PACIFIC HWY","CAMDEN","MA","13243-6210","(711)643-1748",null,"2013-04-09","Active"]
[10033,"VISN 22 Design-Bid-Build MATOC",null,null,null,null,null,null,null,"2013-04-09","Active"]
[10034,"56th CONTRACTING SQ FA4887","15100 W. EAGLE STREET",null,"LUKE AFB","NM",86401,"(734)967-1776",null,"2014-11-03","Active"]
[10035,"NAVAL BASE SAN PEDRO JOC","N73584-15-D-5001","3840 McKEAN ST, BLDG 232","CAMDEN","MA",13246,"(711)667-7571","(711)667-0741","2014-09-03","Active"]
[10036,"NAVAL BASE POINT LOMA JOC","N73584-15-D-3507","5746 PACIFIC HWY","CAMDEN","MA","13220-3766","(711)635-9691",null,"2014-09-03","Active"]
[10037,"NAVFAC ENVIRONMENTAL CONTRACTS CORE","CODE R07B3","2566 FRAZEE ROAD","CAMDEN","MA","13208-5420",null,null,"2013-09-30","Active"]
[10038,"DEPARTMENT OF THE NAVY","NAVFAC SW NAVAL BASE SD","3840 McKEAN ST, BLDG 232","CAMDEN","MA",13246,null,null,"2013-09-27","Active"]
[10039,"DEPARTMENT OF THE NAVY","EL CENTRO ROICC/CODE ROPDN","NAVAL AIR FACILITY EL CENTRO","NANTUCKET","MA","13354-6008","(870)441-3514",null,"2013-09-30","Active"]
[10040,"DEPARTMENT OF THE NAVY","CORONADO FEAD/CODE ROPMN","NAVAL AIR STATION NORTH ISLAND","CAMDEN","MA","13246-7007","(711)656-9056",null,"2013-09-30","Active"]
[10041,"DEPARTMENT OF THE NAVY","NAVFAC SW, CENTRAL IPT","2330 PACIFIC HWY","CAMDEN","MA","13243-6210","(711)643-5815",null,"2013-12-10","Active"]
[10042,"DEPARTMENT OF THE NAVY NAVFAC SW","YUMA ROICC / CODE ROPDY","PO BOX 22232, BLDG 842","YUMA","NM","86461-1231",null,null,"2014-01-19","Active"]
[10043,"DEPARTMENT OF THE NAVY","NAVFAC SW, 31 PALMS ROICC","PO BOX 7024, BLDG 2249T2","TWENTYNINE PALMS","MA","13378-6024","(870)940-8511",null,"2014-11-13","Active"]
[10044,"US GENERAL SERVICES ADMIN SD OFFICE","990 FRONT STREET","SUITE 5347","CAMDEN","MA","13202-8854","(711)668-7170",null,"2013-08-20","Active"]
[10045,"NAVFAC SW, NAVAL BASE POINT LOMA","5746 PACIFIC HWY",null,"CAMDEN","MA","13220-3766","(711)635-7691",null,"2014-11-13","Active"]
[10046,"NAVFAC SW, NAVAL STATION SAN PEDRO","3840 McKEAN ST, BLDG 311",null,"CAMDEN","MA",13246,"(711)667-1860",null,"2014-11-13","Active"]
[10047,"DVA NETWORK CONTRACTING OFFICE 22","5911 AIRPORT PLAZA DRIVE","STE 700","BOSTON","MA",10826,null,null,"2013-07-24","Active"]
[10048,"DVA NETWORK CONTRACTING OFFICE 22","5911 AIRPORT PLAZA DRIVE","STE 700","BOSTON","MA",10826,null,null,"2013-07-24","Active"]